fUSD/lending_fUSD_20251122
["ID","MTS","AMOUNT","RATE_DAILY","PERIOD"]
[394620176,1763790632558,-250.0,0.00015772,2]
[394620177,1763790632567,-132.90369412,0.00015862,2]
[394620205,1763790640404,-67.09630588,0.00015862,2]
[394620206,1763790640414,-250.0,0.0001594,2]
[394620207,1763790640424,-2956.55943615,0.00015941,2]
[394620208,1763790640435,-299.77551092,0.00015941,2]
[394620216,1763791282629,150.0,0.000148,2]
[394620218,1763791402864,500.0,0.00014681,2]
[394620219,1763791403042,500.0,0.00014682,2]
[394620220,1763791407916,200.0,0.00014682,2]
[394620221,1763791436079,1096.0,0.00014736,2]
[394620222,1763791441064,1096.0,0.00014655,2]
[394620223,1763791446061,1096.0,0.00014655,2]
[394620224,1763791451485,1096.0,0.00014655,2]
[394620225,1763791456426,1096.0,0.00014655,2]
[394620226,1763791461633,1096.0,0.00014655,2]
[394620228,1763791467045,1096.0,0.00014655,2]
[394620229,1763791471560,978.01,0.00014655,2]
[394620230,1763791471583,117.99,0.00014655,2]
[394620231,1763791476542,1096.0,0.00014655,2]
[394620232,1763791481985,1073.01072455,0.00014655,2]
[394620233,1763791716094,1213.33884257,0.00022,30]
[394620234,1763791785452,-166.66,0.00014999,2]
[394620237,1763791831357,-999.0,0.00015239,3]
[394620238,1763791831370,-260.50884733,0.00015277,2]
[394620239,1763791831382,-166.66,0.00015314,2]
[394620240,1763791831393,-1096.0,0.00015511,2]
[394620241,1763791831403,-166.66,0.0001563,2]
[394620242,1763791831421,-164.6111,0.0001578,2]
[394620243,1763791831433,-1402.46,0.000158,2]
[394620244,1763791831444,-300.0,0.00015854,2]
[394620245,1763791831456,-150.0,0.00015855,2]
[394620246,1763791831468,-150.0,0.00015855,2]
[394620247,1763791831480,-150.0,0.00015855,2]
[394620248,1763791831493,-150.0,0.00015855,2]
[394620249,1763791831504,-150.0,0.00015855,2]
[394620250,1763791831516,-150.0,0.00015855,2]
[394620251,1763791831528,-150.0,0.00015855,2]
[394620252,1763791831539,-150.0,0.00015855,2]
[394620253,1763791831550,-150.0,0.00015855,2]
[394620254,1763791831561,-169.55,0.00015878,2]
[394620255,1763791831574,-300.0,0.000159,2]
[394620256,1763791831586,-5178.56505293,0.00015941,2]
[394620258,1763791831597,-264.37836761,0.00015943,2]
[394620260,1763791831609,-166.66,0.00015946,2]
[394620261,1763791831620,-768.05,0.00015946,2]
[394620262,1763791831632,-151.0,0.00015959,2]
[394620263,1763791831643,-200.0,0.00015961,2]
[394620264,1763791831654,-9999.99,0.00015961,2]
[394620266,1763791831665,-1207.96,0.00015961,2]
[394620269,1763791831677,-150.99,0.00015961,2]
[394620271,1763791831688,-151.0,0.00015967,2]
[394620273,1763791831698,-150.56,0.00016004,2]
[394620275,1763791831709,-150.0,0.00016009,2]
[394620277,1763791831721,-887.88,0.00016009,2]
[394620280,1763791831732,-169.64,0.000161,2]
[394620282,1763791831742,-578.20924308,0.00016133,2]
[394620284,1763791831754,-1000.0,0.00016151,2]
[394620286,1763791831765,-150.0,0.00016155,2]
[394620289,1763791831776,-161.06,0.0001626,2]
[394620291,1763791831787,-166.66,0.00016262,2]
[394620293,1763791831798,-150.0,0.00016295,2]
[394620295,1763791831809,-150.0,0.00016295,2]
[394620297,1763791831820,-1096.0,0.00016328,2]
[394620300,1763791831831,-150.0,0.00016442,2]
[394620302,1763791831841,-152.92998682,0.00016497,2]
[394620304,1763791831852,-150.78691539,0.000165,2]
[394620306,1763791831862,-551.73308375,0.00016569,2]
[394620309,1763791831881,-69.86834774,0.00016569,2]
[394620312,1763791831892,-597.09424157,0.00016569,2]
[394620314,1763791831903,-339.5479716,0.00016569,2]
[394620316,1763791831915,-109.95257149,0.00016569,2]
[394620318,1763791831926,-166.66,0.00016577,2]
[394620321,1763791831937,-70.87742751,0.0001658,2]
[394620329,1763791832004,-1363.25857229,0.0001658,2]
[394620330,1763791832017,-500.0,0.00016596,2]
[394620333,1763791832028,-500.0,0.00016596,2]
[394620334,1763791832039,-500.0,0.00016596,2]
[394620335,1763791832051,-500.0,0.00016596,2]
[394620336,1763791832063,-500.0,0.00016596,2]
[394620337,1763791832074,-340.27329291,0.00016596,2]
[394620338,1763791832096,-385.21970968,0.00016596,2]
[394620340,1763791832114,-725.93,0.00016596,2]
[394620343,1763791832125,-151.0,0.00016596,2]
[394620345,1763791832137,-500.0,0.00016596,2]
[394620346,1763791832148,-641.55,0.00016596,2]
[394620347,1763791832159,-500.0,0.00016596,2]
[394620348,1763791832170,-500.0,0.00016596,2]
[394620349,1763791832181,-500.0,0.00016596,2]
[394620350,1763791832192,-793.99,0.00016596,2]
[394620351,1763791832203,-793.75,0.00016596,2]
[394620352,1763791832214,-500.0,0.00016596,2]
[394620353,1763791832225,-500.0,0.00016596,2]
[394620354,1763791832236,-500.0,0.00016596,2]
[394620355,1763791832247,-500.0,0.00016596,2]
[394620356,1763791832259,-500.0,0.00016596,2]
[394620357,1763791832270,-500.0,0.00016596,2]
[394620358,1763791832282,-151.0,0.00016596,2]
[394620359,1763791832293,-151.0,0.00016596,2]
[394620360,1763791832304,-151.0,0.00016596,2]
[394620361,1763791832315,-500.0,0.00016596,2]
[394620362,1763791832326,-299.761496,0.00016596,2]
[394620363,1763791832342,-500.0,0.00016596,2]
[394620364,1763791832353,-818.99,0.00016596,2]
[394620365,1763791832365,-500.0,0.00016596,2]
[394620366,1763791832376,-500.0,0.00016596,2]
[394620367,1763791832387,-500.0,0.00016596,2]
[394620368,1763791832398,-500.0,0.00016596,2]
[394620369,1763791832409,-505.67482942,0.00016596,2]
[394620370,1763791832420,-10.53421229,0.00016596,2]
[394620371,1763791832437,-490.72105943,0.00016596,2]
[394620372,1763791832448,-814.27894057,0.00016596,2]
[394620373,1763791832462,-1922.19742957,0.00016596,2]
[394620374,1763791832475,-498.62412123,0.00016596,2]
[394620375,1763791832498,-2906.46441072,0.00016596,2]
[394620376,1763791832513,-482.13,0.00016596,2]
[394620377,1763791832528,-747.8952764,0.00016596,2]
[394620378,1763791832545,-583.63247807,0.00016596,2]
[394620379,1763791837383,-339.0126659,0.000159,2]
[394620380,1763791837393,-645.51322873,0.00016556,2]
[394620381,1763791837404,-288.75296258,0.00016556,2]
[394620382,1763791837415,-2461.23179609,0.00016556,2]
[394620383,1763791837425,-1738.77734344,0.00016596,2]
[394620384,1763791837434,-624.18,0.00016596,2]
[394620385,1763791837444,-500.0,0.00016596,2]
[394620386,1763791837453,-500.0,0.00016596,2]
[394620387,1763791837463,-500.0,0.00016596,2]
[394620388,1763791837472,-6.47789732,0.00016596,2]
[394620389,1763791837507,-1027.86210268,0.00016596,2]
[394620390,1763791837516,-504.55990825,0.00016596,2]
[394620391,1763791837525,-500.0,0.00016596,2]
[394620392,1763791837534,-500.0,0.00016596,2]
[394620393,1763791837543,-500.0,0.00016596,2]
[394620394,1763791837552,-500.0,0.00016596,2]
[394620395,1763791837563,-500.0,0.00016596,2]
[394620396,1763791837573,-500.0,0.00016596,2]
[394620397,1763791837583,-933.13,0.00016596,2]
[394620398,1763791837592,-500.0,0.00016596,2]
[394620399,1763791837600,-13634.44798907,0.00016597,2]
[394620400,1763791837611,-406.0,0.00016597,2]
[394620401,1763791837641,-3108.0,0.00016597,2]
[394620402,1763791837664,-2799.9243248,0.00016597,2]
[394620429,1763791839460,-339.01266589,0.00016013,2]
[394620431,1763791839469,-68.10746467,0.00016596,2]
[394620455,1763791839684,-431.89253533,0.00016596,2]
[394620457,1763791839694,-20.44425343,0.00016597,2]
[394620459,1763791839704,-490.33892982,0.00016597,2]
[394620460,1763791839716,-452.20582707,0.00016597,2]
[394620461,1763791839727,-555.4,0.00016597,2]
[394620462,1763791839738,-789.95999999,0.00016597,2]
[394620463,1763791839749,-771.30083,0.00016597,2]
[394620467,1763791839801,-14517.1066969,0.00016597,2]
[394620469,1763791839817,-95050.62427929,0.00016597,2]
[394620514,1763791844318,-339.01266589,0.00016496,2]
[394620515,1763791844328,-500.0,0.00016596,2]
[394620516,1763791844339,-443.8076903,0.00016596,2]
[394620517,1763791844349,-500.0,0.00016596,2]
[394620518,1763791844359,-500.0,0.00016596,2]
[394620519,1763791844369,-141262.68730658,0.00016597,2]
[394620520,1763791844381,-12768.13027325,0.00016597,2]
[394620521,1763791844399,-521.86461277,0.00016597,2]
[394620522,1763791844411,-315.315,0.00016597,2]
[394620523,1763791844422,-198140.85427555,0.00016597,2]
[394620524,1763791844433,-3439.16975584,0.00016597,2]
[394620525,1763791844450,-6855.90067227,0.00016597,2]
[394620526,1763791844462,-1614.77246,0.00016597,2]
[394620530,1763791845613,-1204.55726227,0.00016597,2]
[394620531,1763791845624,-364.00002,0.00016597,2]
[394620532,1763791845635,-774.50000158,0.00016597,2]
[394620533,1763791845647,-362.5,0.00016597,2]
[394620534,1763791845658,-290.856,0.00016597,2]
[394620535,1763791845669,-424.56000003,0.00016597,2]
[394620536,1763791845686,-8313.79910523,0.00016597,2]
[394620537,1763792244783,815.22,0.00013699,2]
[394620538,1763792598999,500.0,0.00013699,2]
[394620539,1763792599339,500.0,0.00013699,2]
[394620540,1763792603813,200.0,0.00013589,2]
[394620541,1763792705407,150.0,0.0001564,120]
[394620557,1763793031621,-150.0,0.0001564,2]
[394620558,1763793031632,-150.0,0.00015658,2]
[394620559,1763793031643,-150.0,0.00015658,2]
[394620560,1763793031652,-150.0,0.00015658,2]
[394620561,1763793031662,-150.0,0.00015658,2]
[394620562,1763793031671,-150.0,0.00015658,2]
[394620563,1763793031681,-150.0,0.00015658,2]
[394620564,1763793031690,-150.0,0.00015658,2]
[394620565,1763793031699,-1000.0,0.00015658,2]
[394620566,1763793031708,-150.0,0.00015674,2]
[394620567,1763793031717,-500.0,0.00015791,2]
[394620568,1763793031729,-1600.0,0.00015832,2]
[394620569,1763793031738,-231.3,0.00015891,2]
[394620570,1763793031747,-425.8310154,0.000159,2]
[394620571,1763793031757,-578.20924308,0.00016059,2]
[394620572,1763793031766,-166.66,0.00016112,2]
[394620573,1763793031776,-249.56336181,0.00016225,2]
[394620574,1763793031785,-150.0,0.00016237,2]
[394620575,1763793031794,-150.0,0.00016237,2]
[394620576,1763793031804,-361.03824126,0.000164,2]
[394620577,1763793031813,-999.99,0.000164,2]
[394620578,1763793031822,-1960.35,0.00016438,2]
[394620579,1763793031831,-425.8310154,0.00016486,2]
[394620580,1763793031841,-2959.67037121,0.00016495,2]
[394620581,1763793031850,-408.96480879,0.00016496,2]
[394620582,1763793031859,-152.92998682,0.00016496,2]
[394620583,1763793031869,-150.57,0.000165,2]
[394620584,1763793031878,-150.0,0.000165,2]
[394620585,1763793031887,-151.87,0.00016515,2]
[394620586,1763793031896,-680.54997484,0.00016544,2]
[394620587,1763793031905,-292.82,0.00016585,2]
[394620588,1763793031914,-431.74798655,0.00016586,2]
[394620589,1763793031924,-5000.0,0.00016586,2]
[394620590,1763793031933,-5000.0,0.00016586,2]
[394620591,1763793031942,-5000.0,0.00016586,2]
[394620592,1763793031951,-2155.48745554,0.00016586,2]
[394620593,1763793031960,-721.12765535,0.00016586,2]
[394620594,1763793031969,-1500.0,0.00016586,2]
[394620595,1763793031978,-574.12855637,0.00016586,2]
[394620596,1763793031987,-282.0388486,0.00016586,2]
[394620597,1763793031996,-500.0,0.00016586,2]
[394620598,1763793032006,-500.0,0.00016586,2]
[394620599,1763793032015,-500.0,0.00016586,2]
[394620600,1763793032025,-500.0,0.00016586,2]
[394620601,1763793032034,-500.0,0.00016586,2]
[394620602,1763793032043,-500.0,0.00016586,2]
[394620603,1763793032052,-500.0,0.00016586,2]
[394620604,1763793032063,-500.0,0.00016586,2]
[394620606,1763793032074,-500.0,0.00016586,2]
[394620608,1763793032084,-500.0,0.00016586,2]
[394620609,1763793032094,-307.13067678,0.00016586,2]
[394620611,1763793032104,-315.58592143,0.00016594,2]
[394620612,1763793032113,-182.01310552,0.00016594,2]
[394620614,1763793032123,-197.81476086,0.00016594,2]
[394620616,1763793032138,-500.0,0.00016594,2]
[394620618,1763793032147,-333.46504965,0.00016594,2]
[394620619,1763793032156,-500.0,0.00016594,2]
[394620621,1763793032166,-498.17149717,0.00016594,2]
[394620622,1763793032176,-500.0,0.00016594,2]
[394620623,1763793032186,-500.0,0.00016594,2]
[394620624,1763793032196,-533.82519856,0.00016595,2]
[394620625,1763793032205,-400.0,0.00016595,2]
[394620626,1763793032216,-500.0,0.00016595,2]
[394620627,1763793032226,-500.0,0.00016595,2]
[394620628,1763793032235,-500.0,0.00016595,2]
[394620629,1763793032246,-186.75324458,0.00016595,2]
[394620630,1763793032257,-500.0,0.00016595,2]
[394620631,1763793032267,-500.0,0.00016595,2]
[394620632,1763793032277,-1027.56,0.00016595,2]
[394620633,1763793032287,-500.0,0.00016595,2]
[394620634,1763793032297,-400.0,0.00016595,2]
[394620635,1763793032306,-500.0,0.00016595,2]
[394620636,1763793032316,-500.0,0.00016595,2]
[394620637,1763793032326,-500.0,0.00016595,2]
[394620638,1763793032337,-500.0,0.00016595,2]
[394620639,1763793032350,-686.82,0.00016595,2]
[394620640,1763793032360,-400.0,0.00016595,2]
[394620641,1763793032369,-500.0,0.00016595,2]
[394620642,1763793032383,-500.0,0.00016595,2]
[394620643,1763793032394,-500.0,0.00016595,2]
[394620644,1763793032404,-500.0,0.00016595,2]
[394620645,1763793032414,-500.0,0.00016595,2]
[394620646,1763793032426,-500.0,0.00016595,2]
[394620647,1763793032436,-500.0,0.00016595,2]
[394620648,1763793032446,-500.0,0.00016595,2]
[394620649,1763793032455,-500.0,0.00016595,2]
[394620650,1763793032464,-921.03,0.00016595,2]
[394620651,1763793032474,-500.0,0.00016595,2]
[394620652,1763793032484,-501.4530074,0.00016595,2]
[394620653,1763793032493,-500.0,0.00016595,2]
[394620654,1763793032502,-500.0,0.00016595,2]
[394620655,1763793032511,-500.0,0.00016595,2]
[394620656,1763793032521,-500.0,0.00016595,2]
[394620657,1763793032530,-500.0,0.00016595,2]
[394620658,1763793032540,-500.0,0.00016595,2]
[394620659,1763793032550,-500.0,0.00016595,2]
[394620660,1763793032560,-500.0,0.00016595,2]
[394620661,1763793032569,-1636.72,0.00016595,2]
[394620662,1763793032579,-500.0,0.00016595,2]
[394620663,1763793032588,-1051.27,0.00016595,2]
[394620664,1763793032597,-500.0,0.00016595,2]
[394620665,1763793032607,-1305.04,0.00016595,2]
[394620666,1763793032616,-500.0,0.00016595,2]
[394620667,1763793032628,-500.0,0.00016595,2]
[394620668,1763793032637,-500.0,0.00016595,2]
[394620669,1763793032647,-1093.63,0.00016595,2]
[394620670,1763793032657,-500.0,0.00016595,2]
[394620671,1763793032666,-500.0,0.00016595,2]
[394620672,1763793032675,-642.70314524,0.00016595,2]
[394620673,1763793032684,-500.0,0.00016595,2]
[394620674,1763793032693,-500.0,0.00016595,2]
[394620675,1763793032703,-500.0,0.00016595,2]
[394620676,1763793032712,-500.0,0.00016595,2]
[394620677,1763793032721,-500.0,0.00016595,2]
[394620678,1763793032730,-413.67881255,0.00016595,2]
[394620679,1763793032739,-264.231611,0.00016595,2]
[394620680,1763793032748,-500.0,0.00016595,2]
[394620681,1763793032757,-500.0,0.00016595,2]
[394620682,1763793032766,-500.0,0.00016595,2]
[394620683,1763793032775,-500.0,0.00016595,2]
[394620684,1763793032784,-500.0,0.00016595,2]
[394620685,1763793032793,-500.0,0.00016595,2]
[394620686,1763793032803,-500.0,0.00016595,2]
[394620687,1763793032812,-500.0,0.00016595,2]
[394620688,1763793032821,-500.0,0.00016595,2]
[394620689,1763793032831,-772.78358,0.00016595,2]
[394620690,1763793032840,-483.069694,0.00016595,2]
[394620691,1763793032849,-500.0,0.00016595,2]
[394620692,1763793032858,-495.0,0.00016595,2]
[394620693,1763793032866,-4905.67007,0.00016595,2]
[394620694,1763793032876,-405.00327295,0.00016595,2]
[394620695,1763793032885,-500.0,0.00016595,2]
[394620696,1763793032894,-500.0,0.00016595,2]
[394620697,1763793032903,-484.73002287,0.00016595,2]
[394620698,1763793032911,-742.45,0.00016595,2]
[394620699,1763793032920,-500.0,0.00016595,2]
[394620700,1763793032928,-154.904279,0.00016595,2]
[394620701,1763793032937,-271.27939886,0.00016595,2]
[394620702,1763793032946,-500.0,0.00016595,2]
[394620703,1763793032955,-500.0,0.00016595,2]
[394620704,1763793032964,-493.83757875,0.00016595,2]
[394620705,1763793032973,-500.0,0.00016595,2]
[394620706,1763793032982,-500.0,0.00016595,2]
[394620707,1763793032992,-500.0,0.00016595,2]
[394620708,1763793033002,-500.0,0.00016595,2]
[394620709,1763793033011,-285.23307891,0.00016595,2]
[394620710,1763793033021,-500.0,0.00016595,2]
[394620711,1763793033029,-500.0,0.00016595,2]
[394620712,1763793033039,-500.0,0.00016595,2]
[394620713,1763793033047,-500.0,0.00016595,2]
[394620714,1763793033056,-891.81,0.00016595,2]
[394620715,1763793033065,-151.0,0.00016595,2]
[394620716,1763793033075,-406.72096098,0.00016595,2]
[394620717,1763793033085,-500.0,0.00016595,2]
[394620718,1763793033093,-500.0,0.00016595,2]
[394620719,1763793033102,-500.0,0.00016595,2]
[394620720,1763793033111,-500.0,0.00016595,2]
[394620721,1763793033120,-500.0,0.00016595,2]
[394620722,1763793033131,-500.0,0.00016595,2]
[394620723,1763793033140,-500.0,0.00016595,2]
[394620724,1763793033150,-500.0,0.00016595,2]
[394620725,1763793033159,-500.0,0.00016595,2]
[394620726,1763793033168,-500.0,0.00016595,2]
[394620727,1763793033177,-505.11364624,0.00016595,2]
[394620728,1763793033187,-500.0,0.00016595,2]
[394620729,1763793033195,-500.0,0.00016595,2]
[394620730,1763793033205,-500.0,0.00016595,2]
[394620731,1763793033214,-500.0,0.00016595,2]
[394620732,1763793033223,-500.0,0.00016595,2]
[394620733,1763793033233,-500.0,0.00016595,2]
[394620734,1763793033242,-500.0,0.00016595,2]
[394620735,1763793033251,-548.36800049,0.00016595,2]
[394620736,1763793033261,-500.0,0.00016595,2]
[394620737,1763793033270,-500.0,0.00016595,2]
[394620738,1763793033280,-500.0,0.00016595,2]
[394620739,1763793033289,-500.0,0.00016595,2]
[394620740,1763793033298,-500.0,0.00016595,2]
[394620741,1763793033307,-500.0,0.00016595,2]
[394620742,1763793033317,-528.36778117,0.00016595,2]
[394620743,1763793033326,-500.0,0.00016595,2]
[394620744,1763793033335,-500.0,0.00016595,2]
[394620745,1763793033347,-507.56618656,0.00016595,2]
[394620746,1763793033356,-500.0,0.00016595,2]
[394620747,1763793033365,-629.13,0.00016595,2]
[394620748,1763793033374,-500.0,0.00016595,2]
[394620749,1763793033384,-500.0,0.00016595,2]
[394620750,1763793033394,-501.75165023,0.00016595,2]
[394620751,1763793033403,-508.70934206,0.00016595,2]
[394620752,1763793033412,-500.0,0.00016595,2]
[394620753,1763793033422,-500.0,0.00016595,2]
[394620754,1763793033430,-502.00969773,0.00016595,2]
[394620755,1763793033439,-500.0,0.00016595,2]
[394620756,1763793033449,-500.0,0.00016595,2]
[394620757,1763793033458,-514.53433667,0.00016595,2]
[394620758,1763793033467,-500.0,0.00016595,2]
[394620759,1763793033477,-740.34,0.00016595,2]
[394620760,1763793033486,-507.87712573,0.00016595,2]
[394620761,1763793033498,-837.33,0.00016595,2]
[394620762,1763793033513,-503.05487267,0.00016595,2]
[394620763,1763793033522,-500.0,0.00016595,2]
[394620764,1763793033533,-500.0,0.00016595,2]
[394620765,1763793033542,-500.0,0.00016595,2]
[394620766,1763793033551,-644.51371965,0.00016595,2]
[394620767,1763793033560,-500.0,0.00016595,2]
[394620768,1763793033569,-505.85079516,0.00016595,2]
[394620769,1763793033578,-1893.36,0.00016595,2]
[394620770,1763793033588,-500.0,0.00016595,2]
[394620771,1763793033598,-500.0,0.00016595,2]
[394620772,1763793033608,-535.34779641,0.00016595,2]
[394620773,1763793033617,-500.0,0.00016595,2]
[394620774,1763793033628,-527.35429383,0.00016595,2]
[394620775,1763793033637,-524.75647602,0.00016595,2]
[394620776,1763793033646,-625.16,0.00016595,2]
[394620777,1763793033655,-580.15929198,0.00016595,2]
[394620778,1763793033665,-1171.15,0.00016595,2]
[394620779,1763793033674,-527.51106852,0.00016595,2]
[394620780,1763793033683,-500.0,0.00016595,2]
[394620781,1763793033692,-500.0,0.00016595,2]
[394620782,1763793033701,-500.0,0.00016595,2]
[394620783,1763793033710,-500.0,0.00016595,2]
[394620784,1763793033719,-500.0,0.00016595,2]
[394620785,1763793033728,-500.0,0.00016595,2]
[394620786,1763793033738,-516.1876776,0.00016595,2]
[394620787,1763793033747,-543.11206844,0.00016595,2]
[394620788,1763793033756,-500.0,0.00016595,2]
[394620789,1763793033765,-500.0,0.00016595,2]
[394620790,1763793033774,-631.46,0.00016595,2]
[394620791,1763793033783,-500.0,0.00016595,2]
[394620792,1763793033792,-500.0,0.00016595,2]
[394620793,1763793033802,-500.0,0.00016595,2]
[394620794,1763793033811,-500.0,0.00016595,2]
[394620795,1763793033820,-500.0,0.00016595,2]
[394620796,1763793033829,-647.44054137,0.00016595,2]
[394620797,1763793033839,-500.0,0.00016595,2]
[394620798,1763793033848,-500.0,0.00016595,2]
[394620799,1763793033857,-500.0,0.00016595,2]
[394620800,1763793033866,-500.0,0.00016595,2]
[394620801,1763793033875,-500.0,0.00016595,2]
[394620802,1763793033886,-413.82938341,0.00016595,2]
[394620803,1763793033895,-500.0,0.00016595,2]
[394620804,1763793033904,-500.0,0.00016595,2]
[394620805,1763793033913,-1277.25,0.00016595,2]
[394620806,1763793033922,-514.53,0.00016595,2]
[394620807,1763793033931,-514.89919603,0.00016595,2]
[394620808,1763793033940,-409.32026059,0.00016595,2]
[394620809,1763793033949,-626.17190731,0.00016595,2]
[394620810,1763793033958,-510.83598062,0.00016595,2]
[394620811,1763793033967,-500.0,0.00016595,2]
[394620812,1763793033976,-500.0,0.00016595,2]
[394620813,1763793033985,-500.0,0.00016595,2]
[394620814,1763793033994,-500.0,0.00016595,2]
[394620815,1763793034003,-511.40263021,0.00016595,2]
[394620816,1763793034012,-500.0,0.00016595,2]
[394620817,1763793034021,-500.0,0.00016595,2]
[394620818,1763793034030,-539.28488241,0.00016595,2]
[394620819,1763793034039,-536.80826513,0.00016595,2]
[394620820,1763793034048,-667.64,0.00016595,2]
[394620821,1763793034057,-500.0,0.00016595,2]
[394620822,1763793034066,-500.0,0.00016595,2]
[394620823,1763793034076,-657.45,0.00016595,2]
[394620824,1763793034085,-500.0,0.00016595,2]
[394620825,1763793034094,-500.0,0.00016595,2]
[394620826,1763793034103,-612.71,0.00016595,2]
[394620827,1763793034114,-848.63,0.00016595,2]
[394620828,1763793034123,-500.0,0.00016595,2]
[394620829,1763793034133,-500.0,0.00016595,2]
[394620830,1763793034142,-500.0,0.00016595,2]
[394620831,1763793034151,-500.0,0.00016595,2]
[394620832,1763793034161,-500.0,0.00016595,2]
[394620833,1763793034170,-500.0,0.00016595,2]
[394620834,1763793034179,-367.06806149,0.00016595,2]
[394620835,1763793034188,-1587.12,0.00016595,2]
[394620836,1763793034197,-500.0,0.00016595,2]
[394620837,1763793034206,-500.0,0.00016595,2]
[394620838,1763793034215,-500.0,0.00016595,2]
[394620839,1763793034224,-500.0,0.00016595,2]
[394620840,1763793034233,-500.0,0.00016595,2]
[394620841,1763793034242,-1102.97,0.00016595,2]
[394620842,1763793034251,-517.29001488,0.00016595,2]
[394620843,1763793034261,-516.11033383,0.00016595,2]
[394620844,1763793034270,-1380.79,0.00016595,2]
[394620845,1763793034279,-695.68,0.00016595,2]
[394620846,1763793034288,-500.0,0.00016595,2]
[394620847,1763793034298,-512.30694426,0.00016595,2]
[394620848,1763793034307,-500.0,0.00016595,2]
[394620849,1763793034316,-500.0,0.00016595,2]
[394620850,1763793034326,-949.35,0.00016595,2]
[394620851,1763793034335,-1999.42,0.00016595,2]
[394620852,1763793034346,-500.0,0.00016595,2]
[394620853,1763793034357,-500.0,0.00016595,2]
[394620854,1763793034377,-6713.1,0.00016595,2]
[394620855,1763793034387,-614.81,0.00016595,2]
[394620856,1763793034396,-500.0,0.00016595,2]
[394620857,1763793034406,-500.0,0.00016595,2]
[394620858,1763793034416,-500.0,0.00016595,2]
[394620859,1763793034428,-500.0,0.00016595,2]
[394620860,1763793034438,-500.0,0.00016595,2]
[394620861,1763793034447,-500.0,0.00016595,2]
[394620862,1763793034458,-500.0,0.00016595,2]
[394620863,1763793034467,-500.0,0.00016595,2]
[394620864,1763793034475,-500.0,0.00016595,2]
[394620865,1763793034485,-500.0,0.00016595,2]
[394620866,1763793034494,-510.1,0.00016595,2]
[394620867,1763793034503,-500.0,0.00016595,2]
[394620868,1763793034512,-500.0,0.00016595,2]
[394620869,1763793034520,-500.0,0.00016595,2]
[394620870,1763793034529,-500.0,0.00016595,2]
[394620871,1763793034538,-760.67,0.00016595,2]
[394620872,1763793034547,-500.0,0.00016595,2]
[394620873,1763793034556,-500.0,0.00016595,2]
[394620874,1763793034566,-500.0,0.00016595,2]
[394620875,1763793034575,-500.0,0.00016595,2]
[394620876,1763793034584,-1136.97,0.00016595,2]
[394620877,1763793034593,-500.0,0.00016595,2]
[394620878,1763793034603,-500.0,0.00016595,2]
[394620879,1763793034613,-500.0,0.00016595,2]
[394620880,1763793034622,-760.91,0.00016595,2]
[394620881,1763793034632,-500.0,0.00016595,2]
[394620882,1763793034641,-500.0,0.00016595,2]
[394620883,1763793034651,-500.0,0.00016595,2]
[394620884,1763793034660,-500.0,0.00016595,2]
[394620885,1763793034669,-1042.6,0.00016595,2]